[Event "*** SCC Grand Prix: Titled Tuesday Blitz"]
[Site "Chess.com"]
[Date "2020.09.29"]
[Round "9"]
[White "AttilaTurzo"]
[Black "IngOscarArdila"]
[Result "0-1"]
[WhiteElo "2393"]
[BlackElo "2159"]
[TimeControl "180+1"]
[EndTime "11:44:36 PDT"]
[Termination "IngOscarArdila won on time"]

1. e4 {[%clk 0:03:00.9]} 1... e5 {[%clk 0:02:57.9]} 2. Nf3 {[%clk 0:03:00.1]}
2... Nf6 {[%clk 0:02:56.9]} 3. Nxe5 {[%clk 0:02:59.3]} 3... d6 {[%clk
0:02:57.1]} 4. Nf3 {[%clk 0:02:59.5]} 4... Nxe4 {[%clk 0:02:57.6]} 5. Nc3 {[%clk
0:03:00.3]} 5... Nf6 {[%clk 0:02:57.9]} 6. d4 {[%clk 0:02:57.1]} 6... Be7 {[%clk
0:02:58.8]} 7. Bd3 {[%clk 0:02:55.7]} 7... O-O {[%clk 0:02:59.7]} 8. h3 {[%clk
0:02:55.7]} 8... Nbd7 {[%clk 0:03:00.2]} 9. O-O {[%clk 0:02:55.8]} 9... Re8
{[%clk 0:03:00.7]} 10. Re1 {[%clk 0:02:54.5]} 10... Nf8 {[%clk 0:03:01.2]} 11.
Ne2 {[%clk 0:02:39.5]} 11... Ng6 {[%clk 0:03:01.4]} 12. Ng3 {[%clk 0:02:39.3]}
12... Bd7 {[%clk 0:03:00.5]} 13. Nf5 {[%clk 0:02:38.6]} 13... Bf8 {[%clk
0:02:59.4]} 14. Be3 {[%clk 0:02:36]} 14... Nd5 {[%clk 0:02:55.6]} 15. Bg5 {[%clk
0:02:32.8]} 15... Qc8 {[%clk 0:02:38.9]} 16. Ng3 {[%clk 0:02:17.8]} 16... Ndf4
{[%clk 0:02:31.7]} 17. Bf1 {[%clk 0:02:16.3]} 17... h6 {[%clk 0:02:28.3]} 18.
Bxf4 {[%clk 0:02:14]} 18... Nxf4 {[%clk 0:02:28.5]} 19. Qd2 {[%clk 0:02:13.1]}
19... Ng6 {[%clk 0:02:11.2]} 20. c4 {[%clk 0:02:11]} 20... Qd8 {[%clk
0:02:10.1]} 21. Bd3 {[%clk 0:02:06.1]} 21... Qf6 {[%clk 0:02:06.6]} 22. Nh5
{[%clk 0:01:57.9]} 22... Qd8 {[%clk 0:01:55.5]} 23. Rxe8 {[%clk 0:01:57.2]}
23... Bxe8 {[%clk 0:01:52.6]} 24. Re1 {[%clk 0:01:56.7]} 24... Bd7 {[%clk
0:01:49.3]} 25. Qc2 {[%clk 0:01:54.9]} 25... Ne7 {[%clk 0:01:40.9]} 26. d5
{[%clk 0:01:44]} 26... Kh8 {[%clk 0:01:37.8]} 27. Nd4 {[%clk 0:01:38.8]} 27...
g6 {[%clk 0:01:25.3]} 28. Nf6 {[%clk 0:01:35.2]} 28... Bg7 {[%clk 0:01:25.5]}
29. Nxd7 {[%clk 0:01:28.4]} 29... Qxd7 {[%clk 0:01:25.7]} 30. Nf3 {[%clk
0:01:24.7]} 30... Ng8 {[%clk 0:01:23.8]} 31. Qe2 {[%clk 0:01:23]} 31... a5
{[%clk 0:01:18.7]} 32. b3 {[%clk 0:01:21.1]} 32... Bf6 {[%clk 0:01:14.3]} 33.
Nd2 {[%clk 0:01:14.2]} 33... Kg7 {[%clk 0:01:07.4]} 34. Ne4 {[%clk 0:01:14.1]}
34... Re8 {[%clk 0:01:02.6]} 35. Qd2 {[%clk 0:01:06.6]} 35... Bd4 {[%clk
0:00:57]} 36. Qxa5 {[%clk 0:01:01.5]} 36... f5 {[%clk 0:00:50.8]} 37. Ng3 {[%clk
0:01:01.1]} 37... b6 {[%clk 0:00:38.6]} 38. Qd2 {[%clk 0:01:00.1]} 38... Nf6
{[%clk 0:00:37.9]} 39. Rxe8 {[%clk 0:00:53]} 39... Qxe8 {[%clk 0:00:34.2]} 40.
Bxf5 {[%clk 0:00:53.3]} 40... Qe5 {[%clk 0:00:26]} 41. Bc2 {[%clk 0:00:44.4]}
41... Bc5 {[%clk 0:00:22]} 42. Qd3 {[%clk 0:00:36.6]} 42... Qg5 {[%clk
0:00:21.9]} 43. Kh1 {[%clk 0:00:24.7]} 43... Bxf2 {[%clk 0:00:19.6]} 44. Ne2
{[%clk 0:00:17.9]} 44... Nh5 {[%clk 0:00:16.8]} 45. Qf3 {[%clk 0:00:13.2]} 45...
Ng3+ {[%clk 0:00:15]} 46. Nxg3 {[%clk 0:00:13.2]} 46... Bxg3 {[%clk 0:00:15.9]}
47. Qd1 {[%clk 0:00:10.6]} 47... Qe3 {[%clk 0:00:15]} 48. Qf1 {[%clk 0:00:05.1]}
48... g5 {[%clk 0:00:14.2]} 49. Bd3 {[%clk 0:00:03.2]} 49... h5 {[%clk
0:00:13.9]} 50. b4 {[%clk 0:00:02.7]} 50... h4 {[%clk 0:00:13.6]} 51. a4 {[%clk
0:00:02]} 51... g4 {[%clk 0:00:13.7]} 0-1

[Event "*** SCC Grand Prix: Titled Tuesday Blitz"]
[Site "Chess.com"]
[Date "2020.09.29"]
[Round "9"]
[White "horripile"]
[Black "GM_Levan_Pantsulaia"]
[Result "1-0"]
[WhiteElo "2686"]
[BlackElo "2832"]
[TimeControl "180+1"]
[EndTime "11:44:37 PDT"]
[Termination "horripile won by resignation"]

1. e4 {[%clk 0:03:00.9]} 1... c5 {[%clk 0:02:59]} 2. Nf3 {[%clk 0:03:00.6]} 2...
e6 {[%clk 0:02:59.2]} 3. g3 {[%clk 0:03:00.5]} 3... Nc6 {[%clk 0:02:57.9]} 4.
Bg2 {[%clk 0:03:00.4]} 4... Nf6 {[%clk 0:02:58.6]} 5. Nc3 {[%clk 0:03:00.3]}
5... d6 {[%clk 0:02:51.5]} 6. O-O {[%clk 0:02:58.2]} 6... Be7 {[%clk 0:02:51.8]}
7. d4 {[%clk 0:02:56.3]} 7... cxd4 {[%clk 0:02:52.1]} 8. Nxd4 {[%clk 0:02:57.2]}
8... O-O {[%clk 0:02:49.6]} 9. Re1 {[%clk 0:02:51.6]} 9... Bd7 {[%clk
0:02:48.8]} 10. a4 {[%clk 0:02:38.2]} 10... a6 {[%clk 0:02:48.4]} 11. Be3 {[%clk
0:02:36.5]} 11... Rc8 {[%clk 0:02:47.4]} 12. Nxc6 {[%clk 0:02:33.4]} 12... Bxc6
{[%clk 0:02:47.1]} 13. a5 {[%clk 0:02:33.4]} 13... Nd7 {[%clk 0:02:40.4]} 14.
Na4 {[%clk 0:02:32.5]} 14... Qxa5 {[%clk 0:02:05.5]} 15. Nb6 {[%clk 0:02:29.2]}
15... Qb4 {[%clk 0:02:05.6]} 16. Nxc8 {[%clk 0:02:27.3]} 16... Rxc8 {[%clk
0:02:06.5]} 17. Ra2 {[%clk 0:02:18.9]} 17... Ne5 {[%clk 0:01:58.6]} 18. b3
{[%clk 0:02:07.7]} 18... Bf8 {[%clk 0:01:52.3]} 19. Qd2 {[%clk 0:01:59.6]} 19...
Qxd2 {[%clk 0:01:44.3]} 20. Bxd2 {[%clk 0:02:00.5]} 20... h6 {[%clk 0:01:43]}
21. c4 {[%clk 0:01:57.1]} 21... g5 {[%clk 0:01:31.1]} 22. f4 {[%clk 0:01:50.9]}
22... gxf4 {[%clk 0:01:31]} 23. gxf4 {[%clk 0:01:51.8]} 23... Nd3 {[%clk
0:01:31.1]} 24. Re2 {[%clk 0:01:47.3]} 24... Bg7 {[%clk 0:01:29.1]} 25. Be3
{[%clk 0:01:45.3]} 25... Kf8 {[%clk 0:01:23]} 26. Red2 {[%clk 0:01:38.2]} 26...
Nb4 {[%clk 0:01:20.9]} 27. Ra5 {[%clk 0:01:36.6]} 27... Ke7 {[%clk 0:01:18.1]}
28. e5 {[%clk 0:01:31.8]} 28... Rg8 {[%clk 0:01:04.7]} 29. exd6+ {[%clk
0:01:27.3]} 29... Kd7 {[%clk 0:01:04.6]} 30. Bxc6+ {[%clk 0:01:26.4]} 30... Nxc6
{[%clk 0:01:03.3]} 31. Rh5 {[%clk 0:01:20.6]} 31... Bf8+ {[%clk 0:00:39.5]} 32.
Kf2 {[%clk 0:01:16.6]} 32... f5 {[%clk 0:00:32.9]} 33. c5 {[%clk 0:01:14.8]}
33... Nb4 {[%clk 0:00:33.2]} 34. Kf3 {[%clk 0:01:12.1]} 34... Nd5 {[%clk
0:00:32.5]} 35. Rxf5 {[%clk 0:00:52]} 35... Nxe3 {[%clk 0:00:14.2]} 36. Rf7+
{[%clk 0:00:47.8]} 36... Ke8 {[%clk 0:00:14.7]} 37. d7+ {[%clk 0:00:47.4]} 37...
Kd8 {[%clk 0:00:14.1]} 38. Kxe3 {[%clk 0:00:45.3]} 38... Bxc5+ {[%clk
0:00:14.7]} 39. Ke4 {[%clk 0:00:45.3]} 39... a5 {[%clk 0:00:14.2]} 40. Ke5
{[%clk 0:00:45]} 40... Bb4 {[%clk 0:00:13.8]} 41. Rd3 {[%clk 0:00:44.4]} 41...
Rg6 {[%clk 0:00:14.1]} 42. Rh7 {[%clk 0:00:42.7]} 42... Rg8 {[%clk 0:00:13.1]}
43. Kxe6 {[%clk 0:00:42.5]} 43... Rf8 {[%clk 0:00:12.6]} 44. f5 {[%clk
0:00:42.5]} 44... b5 {[%clk 0:00:12.8]} 45. f6 {[%clk 0:00:42]} 45... a4 {[%clk
0:00:13]} 46. bxa4 {[%clk 0:00:36.2]} 46... bxa4 {[%clk 0:00:13.9]} 47. Rf7
{[%clk 0:00:34]} 47... Rxf7 {[%clk 0:00:10.1]} 48. Kxf7 {[%clk 0:00:33.4]} 48...
a3 {[%clk 0:00:11]} 49. Rd1 {[%clk 0:00:24.4]} 49... Bc3 {[%clk 0:00:11]} 50.
Ke6 {[%clk 0:00:23.4]} 50... a2 {[%clk 0:00:10.2]} 51. f7 {[%clk 0:00:23.4]}
51... Bg7 {[%clk 0:00:10.7]} 52. Ra1 {[%clk 0:00:23.1]} 1-0

[Event "*** SCC Grand Prix: Titled Tuesday Blitz"]
[Site "Chess.com"]
[Date "2020.09.29"]
[Round "9"]
[White "Harsha_Bharathakoti"]
[Black "stanyga"]
[Result "1-0"]
[WhiteElo "2761"]
[BlackElo "2621"]
[TimeControl "180+1"]
[EndTime "11:44:37 PDT"]
[Termination "Harsha_Bharathakoti won by resignation"]

1. d4 {[%clk 0:02:54.4]} 1... d5 {[%clk 0:02:59.6]} 2. c4 {[%clk 0:02:54.6]}
2... c6 {[%clk 0:02:59.8]} 3. Nf3 {[%clk 0:02:55]} 3... Nf6 {[%clk 0:02:59.6]}
4. Nc3 {[%clk 0:02:55.2]} 4... e6 {[%clk 0:02:59.7]} 5. e3 {[%clk 0:02:55.7]}
5... Nbd7 {[%clk 0:02:59.2]} 6. Qc2 {[%clk 0:02:56.3]} 6... a5 {[%clk
0:02:54.5]} 7. b3 {[%clk 0:02:54.9]} 7... Bd6 {[%clk 0:02:50]} 8. Bd3 {[%clk
0:02:54.2]} 8... O-O {[%clk 0:02:48.5]} 9. O-O {[%clk 0:02:54.5]} 9... e5 {[%clk
0:02:44.2]} 10. cxd5 {[%clk 0:02:51]} 10... cxd5 {[%clk 0:02:41]} 11. e4 {[%clk
0:02:29.9]} 11... exd4 {[%clk 0:02:37.8]} 12. Nxd5 {[%clk 0:02:30]} 12... Nxd5
{[%clk 0:01:58.4]} 13. exd5 {[%clk 0:02:30.9]} 13... h6 {[%clk 0:01:58.3]} 14.
Bh7+ {[%clk 0:02:05.5]} 14... Kh8 {[%clk 0:01:57.9]} 15. Bf5 {[%clk 0:02:06.4]}
15... Nc5 {[%clk 0:01:24.5]} 16. Nxd4 {[%clk 0:01:53]} 16... Bxh2+ {[%clk
0:01:10.4]} 17. Kxh2 {[%clk 0:01:53.9]} 17... Qh4+ {[%clk 0:01:10.6]} 18. Kg1
{[%clk 0:01:52.1]} 18... Qxd4 {[%clk 0:01:11]} 19. Be3 {[%clk 0:01:52.7]} 19...
Qxd5 {[%clk 0:01:06]} 20. Qxc5 {[%clk 0:01:44.1]} 20... Qxc5 {[%clk 0:01:03]}
21. Bxc5 {[%clk 0:01:45]} 21... Bxf5 {[%clk 0:01:03.4]} 22. Bxf8 {[%clk
0:01:45.7]} 22... Rxf8 {[%clk 0:01:04.2]} 23. Rac1 {[%clk 0:01:42.6]} 23... Be4
{[%clk 0:01:01.9]} 24. Rc5 {[%clk 0:01:37.5]} 24... Ra8 {[%clk 0:00:59.3]} 25.
Re1 {[%clk 0:01:31]} 25... Bc6 {[%clk 0:00:54.8]} 26. Ree5 {[%clk 0:01:27.2]}
26... a4 {[%clk 0:00:48.5]} 27. b4 {[%clk 0:01:27.5]} 27... Rd8 {[%clk
0:00:48.6]} 28. Re2 {[%clk 0:01:28.1]} 28... Rd1+ {[%clk 0:00:46.3]} 29. Kh2
{[%clk 0:01:28.2]} 29... Rb1 {[%clk 0:00:46.8]} 30. a3 {[%clk 0:01:20.8]} 30...
Rb3 {[%clk 0:00:46.1]} 31. Re3 {[%clk 0:01:21.3]} 31... Rb2 {[%clk 0:00:46.4]}
32. Kg3 {[%clk 0:01:18.1]} 32... Kh7 {[%clk 0:00:45.8]} 33. f3 {[%clk
0:01:17.4]} 33... Kg6 {[%clk 0:00:44.5]} 34. Rd3 {[%clk 0:01:16.5]} 34... Kh7
{[%clk 0:00:42.6]} 35. Rdc3 {[%clk 0:01:07]} 35... Rb1 {[%clk 0:00:31.2]} 36.
Rc1 {[%clk 0:01:06.8]} 36... Rb2 {[%clk 0:00:31.2]} 37. R5c2 {[%clk 0:01:06]}
37... Rb3 {[%clk 0:00:31.4]} 38. Rc3 {[%clk 0:01:06.2]} 38... Rb2 {[%clk
0:00:32]} 39. R1c2 {[%clk 0:01:04.8]} 39... Rb1 {[%clk 0:00:32.6]} 40. Re2
{[%clk 0:01:04.2]} 40... Bd5 {[%clk 0:00:30]} 41. Re5 {[%clk 0:00:50]} 41... Bc6
{[%clk 0:00:28.5]} 42. Rcc5 {[%clk 0:00:45.8]} 42... Rb3 {[%clk 0:00:28.4]} 43.
b5 {[%clk 0:00:45.9]} 43... Bd7 {[%clk 0:00:28.8]} 44. Rc7 {[%clk 0:00:34.8]}
44... Be6 {[%clk 0:00:20.4]} 45. Rxb7 {[%clk 0:00:35]} 45... Rxa3 {[%clk
0:00:20.8]} 46. Ra7 {[%clk 0:00:35.4]} 46... Rb3 {[%clk 0:00:21]} 47. Rxa4
{[%clk 0:00:34.7]} 47... Rb2 {[%clk 0:00:21.2]} 48. Rc5 {[%clk 0:00:31.4]} 48...
Kg6 {[%clk 0:00:20.8]} 49. Ra6 {[%clk 0:00:31]} 49... Kh7 {[%clk 0:00:20.9]} 50.
b6 {[%clk 0:00:29.9]} 50... Ba2 {[%clk 0:00:17.2]} 51. Rc7 {[%clk 0:00:21.4]}
51... Bb1 {[%clk 0:00:17.2]} 52. b7 {[%clk 0:00:21.4]} 52... Bd3 {[%clk
0:00:17.2]} 53. Ra8 {[%clk 0:00:22]} 53... Bf1 {[%clk 0:00:15]} 54. b8=Q {[%clk
0:00:22.3]} 54... Rxg2+ {[%clk 0:00:15.1]} 55. Kf4 {[%clk 0:00:23]} 1-0

[Event "*** SCC Grand Prix: Titled Tuesday Blitz"]
[Site "Chess.com"]
[Date "2020.09.29"]
[Round "9"]
[White "paulrusan"]
[Black "Vamostodorecto"]
[Result "1-0"]
[WhiteElo "2287"]
[BlackElo "2377"]
[TimeControl "180+1"]
[EndTime "11:44:38 PDT"]
[Termination "paulrusan won by checkmate"]

1. e4 {[%clk 0:03:00.9]} 1... e5 {[%clk 0:02:47.3]} 2. Nf3 {[%clk 0:03:00.2]}
2... Nc6 {[%clk 0:02:47.7]} 3. Bc4 {[%clk 0:03:00.6]} 3... Bc5 {[%clk
0:02:46.8]} 4. b4 {[%clk 0:03:00.8]} 4... Bxb4 {[%clk 0:02:45.4]} 5. c3 {[%clk
0:03:00.5]} 5... Be7 {[%clk 0:02:46]} 6. d4 {[%clk 0:02:59.5]} 6... d6 {[%clk
0:02:39.8]} 7. Qb3 {[%clk 0:02:47.2]} 7... Na5 {[%clk 0:02:33.4]} 8. Bxf7+
{[%clk 0:02:46.9]} 8... Kf8 {[%clk 0:02:32.8]} 9. Qa4 {[%clk 0:02:45.5]} 9...
Kxf7 {[%clk 0:02:30]} 10. Qxa5 {[%clk 0:02:45.2]} 10... exd4 {[%clk 0:02:30.7]}
11. cxd4 {[%clk 0:02:44.8]} 11... h6 {[%clk 0:02:27.3]} 12. O-O {[%clk
0:02:43.1]} 12... Nf6 {[%clk 0:02:21.8]} 13. Nc3 {[%clk 0:02:38.9]} 13... Rf8
{[%clk 0:02:19.4]} 14. e5 {[%clk 0:02:38.1]} 14... Nh7 {[%clk 0:02:08.3]} 15. h3
{[%clk 0:02:23.9]} 15... c6 {[%clk 0:02:03.9]} 16. Qa4 {[%clk 0:02:18.5]} 16...
d5 {[%clk 0:01:54.7]} 17. Qc2 {[%clk 0:02:06.6]} 17... Kg8 {[%clk 0:01:52.9]}
18. Nh2 {[%clk 0:01:59.4]} 18... Bf5 {[%clk 0:01:50.7]} 19. Qb3 {[%clk
0:01:52.5]} 19... Qd7 {[%clk 0:01:49.3]} 20. Be3 {[%clk 0:01:49.1]} 20... Rab8
{[%clk 0:01:44.6]} 21. a4 {[%clk 0:01:48.6]} 21... Ng5 {[%clk 0:01:38.8]} 22. a5
{[%clk 0:01:39.4]} 22... Bxh3 {[%clk 0:01:03.1]} 23. gxh3 {[%clk 0:01:38.6]}
23... Qxh3 {[%clk 0:01:04]} 24. Qd1 {[%clk 0:01:30.5]} 24... Nf3+ {[%clk
0:01:00.8]} 25. Nxf3 {[%clk 0:01:28.5]} 25... Rxf3 {[%clk 0:01:01.7]} 26. Qd3
{[%clk 0:00:42]} 26... Rbf8 {[%clk 0:00:57.2]} 27. Rfb1 {[%clk 0:00:26.9]} 27...
R8f5 {[%clk 0:00:53.4]} 28. Qf1 {[%clk 0:00:26.3]} 28... Rxe3 {[%clk 0:00:33.7]}
29. Qxh3 {[%clk 0:00:26.1]} 29... Rxh3 {[%clk 0:00:34.6]} 30. Rxb7 {[%clk
0:00:25.8]} 30... Rg5+ {[%clk 0:00:20.3]} 31. Kf1 {[%clk 0:00:25.6]} 31... Rh1+
{[%clk 0:00:20.7]} 32. Ke2 {[%clk 0:00:26]} 32... Rxa1 {[%clk 0:00:21.3]} 33.
Rxe7 {[%clk 0:00:26.1]} 33... Rxa5 {[%clk 0:00:21.8]} 34. Rc7 {[%clk 0:00:21.5]}
34... Rg6 {[%clk 0:00:20.7]} 35. f4 {[%clk 0:00:20.8]} 35... h5 {[%clk
0:00:19.9]} 36. f5 {[%clk 0:00:20.9]} 36... Rg4 {[%clk 0:00:19.2]} 37. Rxc6
{[%clk 0:00:19.7]} 37... h4 {[%clk 0:00:17.2]} 38. e6 {[%clk 0:00:17.9]} 38...
Kf8 {[%clk 0:00:16.4]} 39. Rc8+ {[%clk 0:00:17.2]} 39... Ke7 {[%clk 0:00:16.1]}
40. Rc7+ {[%clk 0:00:17.6]} 40... Ke8 {[%clk 0:00:13.6]} 41. Rc8+ {[%clk
0:00:13.5]} 41... Ke7 {[%clk 0:00:13.7]} 42. Rc7+ {[%clk 0:00:13.6]} 42... Kd6
{[%clk 0:00:14.5]} 43. Rd7+ {[%clk 0:00:13.6]} 43... Kc6 {[%clk 0:00:14.5]} 44.
Rd8 {[%clk 0:00:11.9]} 44... Ra3 {[%clk 0:00:07.8]} 45. e7 {[%clk 0:00:11.5]}
45... Rxc3 {[%clk 0:00:07.6]} 46. e8=Q+ {[%clk 0:00:11]} 46... Kb6 {[%clk
0:00:07.7]} 47. Rb8+ {[%clk 0:00:08.1]} 47... Ka5 {[%clk 0:00:08]} 48. Qd8+
{[%clk 0:00:05.8]} 48... Ka4 {[%clk 0:00:07.3]} 49. Qd7+ {[%clk 0:00:05.3]}
49... Ka3 {[%clk 0:00:04.7]} 50. Qxa7# {[%clk 0:00:05.2]} 1-0

[Event "*** SCC Grand Prix: Titled Tuesday Blitz"]
[Site "Chess.com"]
[Date "2020.09.29"]
[Round "9"]
[White "RobertoJBM"]
[Black "elohunter1999"]
[Result "0-1"]
[WhiteElo "2716"]
[BlackElo "2519"]
[TimeControl "180+1"]
[EndTime "11:44:39 PDT"]
[Termination "elohunter1999 won on time"]

1. d4 {[%clk 0:03:00.9]} 1... Nf6 {[%clk 0:02:59.7]} 2. c4 {[%clk 0:02:58]} 2...
c5 {[%clk 0:02:53.9]} 3. d5 {[%clk 0:02:46.9]} 3... e6 {[%clk 0:02:53.8]} 4. Nc3
{[%clk 0:02:46.7]} 4... exd5 {[%clk 0:02:53.6]} 5. cxd5 {[%clk 0:02:46.5]} 5...
d6 {[%clk 0:02:54.5]} 6. e4 {[%clk 0:02:46.4]} 6... g6 {[%clk 0:02:48.3]} 7. Bd3
{[%clk 0:02:45.1]} 7... Bg7 {[%clk 0:02:47.5]} 8. h3 {[%clk 0:02:44.6]} 8... O-O
{[%clk 0:02:47.3]} 9. Nf3 {[%clk 0:02:44.7]} 9... b5 {[%clk 0:02:46.9]} 10. Bxb5
{[%clk 0:02:42.3]} 10... Nxe4 {[%clk 0:02:38.3]} 11. Nxe4 {[%clk 0:02:43.2]}
11... Qa5+ {[%clk 0:02:37.1]} 12. Nfd2 {[%clk 0:02:43.8]} 12... Qxb5 {[%clk
0:02:36.7]} 13. Nxd6 {[%clk 0:02:44.4]} 13... Qa6 {[%clk 0:02:32.7]} 14. N2c4
{[%clk 0:02:45]} 14... Nd7 {[%clk 0:02:31.1]} 15. O-O {[%clk 0:02:44.9]} 15...
Ne5 {[%clk 0:02:31.1]} 16. Nxe5 {[%clk 0:02:38.7]} 16... Qxd6 {[%clk 0:02:28.4]}
17. Nc4 {[%clk 0:02:35.7]} 17... Qa6 {[%clk 0:02:28.2]} 18. Qe2 {[%clk 0:02:27]}
18... Bb7 {[%clk 0:02:14.3]} 19. Rd1 {[%clk 0:02:25.7]} 19... Bd4 {[%clk
0:02:13.5]} 20. Be3 {[%clk 0:02:24.2]} 20... Bxd5 {[%clk 0:02:00.8]} 21. Rac1
{[%clk 0:02:24.1]} 21... Bxc4 {[%clk 0:01:40.9]} 22. Qxc4 {[%clk 0:02:20.4]}
22... Qxc4 {[%clk 0:01:36.6]} 23. Rxc4 {[%clk 0:02:21.3]} 23... Bxe3 {[%clk
0:01:35.9]} 24. fxe3 {[%clk 0:02:22.1]} 24... Rab8 {[%clk 0:01:08.5]} 25. b3
{[%clk 0:02:19.4]} 25... Rfe8 {[%clk 0:01:01.8]} 26. Kf2 {[%clk 0:02:15.5]}
26... Red8 {[%clk 0:01:00.1]} 27. Rxd8+ {[%clk 0:02:11.7]} 27... Rxd8 {[%clk
0:01:01]} 28. Ke2 {[%clk 0:02:12.3]} 28... Rd5 {[%clk 0:00:59.8]} 29. Ra4 {[%clk
0:02:11.7]} 29... Rd7 {[%clk 0:00:59.6]} 30. Ra6 {[%clk 0:02:08.8]} 30... f5
{[%clk 0:00:45.1]} 31. Rc6 {[%clk 0:01:59.7]} 31... Rd5 {[%clk 0:00:40.4]} 32.
Rc8+ {[%clk 0:01:57.6]} 32... Kg7 {[%clk 0:00:40.7]} 33. Rc7+ {[%clk 0:01:58]}
33... Kh6 {[%clk 0:00:41.6]} 34. Rxa7 {[%clk 0:01:57.2]} 34... Re5 {[%clk
0:00:36.2]} 35. g3 {[%clk 0:01:51.2]} 35... g5 {[%clk 0:00:33.7]} 36. Ra6+
{[%clk 0:01:47.3]} 36... Kg7 {[%clk 0:00:28.2]} 37. Ra4 {[%clk 0:01:45.2]} 37...
h6 {[%clk 0:00:20.4]} 38. Rc4 {[%clk 0:01:44.1]} 38... Kf6 {[%clk 0:00:20.6]}
39. a4 {[%clk 0:01:27.7]} 39... Ke6 {[%clk 0:00:21]} 40. a5 {[%clk 0:01:27.7]}
40... Kd5 {[%clk 0:00:21.7]} 41. a6 {[%clk 0:01:26.5]} 41... Re7 {[%clk
0:00:22.2]} 42. Ra4 {[%clk 0:01:26.3]} 42... Ra7 {[%clk 0:00:22.8]} 43. h4
{[%clk 0:01:19.8]} 43... Kc6 {[%clk 0:00:21.7]} 44. hxg5 {[%clk 0:01:16.2]}
44... hxg5 {[%clk 0:00:22.6]} 45. e4 {[%clk 0:01:04.7]} 45... fxe4 {[%clk
0:00:22.2]} 46. Ke3 {[%clk 0:01:04.9]} 46... Kb5 {[%clk 0:00:22.5]} 47. Kxe4
{[%clk 0:01:03.3]} 47... Rxa6 {[%clk 0:00:19]} 48. Rxa6 {[%clk 0:00:26.7]} 48...
Kxa6 {[%clk 0:00:19.9]} 49. Kf5 {[%clk 0:00:27.1]} 49... Kb5 {[%clk 0:00:20.1]}
50. Kxg5 {[%clk 0:00:27.7]} 50... Kb4 {[%clk 0:00:20.8]} 51. Kf4 {[%clk
0:00:18]} 51... Kxb3 {[%clk 0:00:21]} 52. g4 {[%clk 0:00:18.9]} 52... c4 {[%clk
0:00:21]} 53. g5 {[%clk 0:00:19.8]} 53... c3 {[%clk 0:00:21.6]} 54. g6 {[%clk
0:00:20.7]} 54... c2 {[%clk 0:00:22.2]} 55. g7 {[%clk 0:00:21.6]} 55... c1=Q+
{[%clk 0:00:22.6]} 0-1

[Event "*** SCC Grand Prix: Titled Tuesday Blitz"]
[Site "Chess.com"]
[Date "2020.09.29"]
[Round "9"]
[White "moventog"]
[Black "catzapto"]
[Result "1-0"]
[WhiteElo "2234"]
[BlackElo "2064"]
[TimeControl "180+1"]
[EndTime "11:44:39 PDT"]
[Termination "moventog won on time"]

1. d4 {[%clk 0:03:00.9]} 1... Nf6 {[%clk 0:02:59.6]} 2. Bg5 {[%clk 0:03:00.3]}
2... e6 {[%clk 0:02:59]} 3. e4 {[%clk 0:02:59.4]} 3... Be7 {[%clk 0:02:58.2]} 4.
Nd2 {[%clk 0:02:58.7]} 4... c5 {[%clk 0:02:52]} 5. c3 {[%clk 0:02:53.2]} 5...
cxd4 {[%clk 0:02:48.4]} 6. cxd4 {[%clk 0:02:54.1]} 6... Qb6 {[%clk 0:02:43.4]}
7. Ngf3 {[%clk 0:02:50.6]} 7... Qxb2 {[%clk 0:02:37.8]} 8. Bc4 {[%clk
0:02:29.2]} 8... Nc6 {[%clk 0:02:32.6]} 9. d5 {[%clk 0:02:24.7]} 9... Ne5 {[%clk
0:02:25.4]} 10. O-O {[%clk 0:02:22.7]} 10... Nxf3+ {[%clk 0:02:22.1]} 11. Nxf3
{[%clk 0:02:19.1]} 11... h6 {[%clk 0:02:03.1]} 12. Rb1 {[%clk 0:02:09.9]} 12...
Qc3 {[%clk 0:02:00.9]} 13. Rc1 {[%clk 0:02:09]} 13... Qa5 {[%clk 0:01:56.8]} 14.
Bd2 {[%clk 0:02:07.3]} 14... Qb6 {[%clk 0:01:49.5]} 15. Be3 {[%clk 0:01:58]}
15... Bc5 {[%clk 0:01:42.4]} 16. Rb1 {[%clk 0:01:45.4]} 16... Qc7 {[%clk
0:01:41.3]} 17. d6 {[%clk 0:01:28.6]} 17... Bxd6 {[%clk 0:01:37.4]} 18. e5
{[%clk 0:01:27.2]} 18... Bxe5 {[%clk 0:01:36.1]} 19. Nxe5 {[%clk 0:01:26.2]}
19... Qxe5 {[%clk 0:01:36]} 20. Re1 {[%clk 0:01:23]} 20... Qc7 {[%clk
0:01:33.3]} 21. Rc1 {[%clk 0:01:22.3]} 21... Qd8 {[%clk 0:01:30.3]} 22. Bc5
{[%clk 0:01:20.5]} 22... b6 {[%clk 0:01:29.5]} 23. Qf3 {[%clk 0:01:13.9]} 23...
Rb8 {[%clk 0:01:27.2]} 24. Bd6 {[%clk 0:01:13.3]} 24... Bb7 {[%clk 0:01:27.5]}
25. Qg3 {[%clk 0:01:11.5]} 25... Rc8 {[%clk 0:01:01.9]} 26. Bb5 {[%clk
0:01:10.3]} 26... Rxc1 {[%clk 0:00:44.1]} 27. Rxc1 {[%clk 0:01:11.2]} 27... Ne4
{[%clk 0:00:43.3]} 28. Qxg7 {[%clk 0:01:06.5]} 28... Qf6 {[%clk 0:00:43.6]} 29.
Qxf6 {[%clk 0:01:05.8]} 29... Nxf6 {[%clk 0:00:44.5]} 30. Be5 {[%clk 0:01:06]}
30... Ke7 {[%clk 0:00:43.9]} 31. Rc7 {[%clk 0:01:04.4]} 31... Rc8 {[%clk
0:00:36.5]} 32. Rxb7 {[%clk 0:01:04.3]} 32... Rc1+ {[%clk 0:00:35.9]} 33. Bf1
{[%clk 0:01:04.3]} 33... Ng4 {[%clk 0:00:31.2]} 34. Bf4 {[%clk 0:01:02]} 34...
Rc2 {[%clk 0:00:30.4]} 35. Rxa7 {[%clk 0:00:57.3]} 35... Rxf2 {[%clk 0:00:26.4]}
36. Bxh6 {[%clk 0:00:42.4]} 36... Rxf1+ {[%clk 0:00:25.1]} 37. Kxf1 {[%clk
0:00:42.2]} 37... Nxh6 {[%clk 0:00:26]} 38. Rb7 {[%clk 0:00:42.8]} 38... Nf5
{[%clk 0:00:23.3]} 39. Rxb6 {[%clk 0:00:40.9]} 39... d5 {[%clk 0:00:23.8]} 40.
a4 {[%clk 0:00:40.6]} 40... Ne3+ {[%clk 0:00:23.3]} 41. Kg1 {[%clk 0:00:36.7]}
41... Nc4 {[%clk 0:00:24.2]} 42. Rb5 {[%clk 0:00:35.6]} 42... Kd6 {[%clk
0:00:22.4]} 43. h4 {[%clk 0:00:35.2]} 43... e5 {[%clk 0:00:22.2]} 44. h5 {[%clk
0:00:35.2]} 44... e4 {[%clk 0:00:03.9]} 45. h6 {[%clk 0:00:32.8]} 45... Ne5
{[%clk 0:00:04.2]} 46. h7 {[%clk 0:00:27]} 46... Ng6 {[%clk 0:00:04.1]} 47. Rb6+
{[%clk 0:00:26.2]} 47... Kc5 {[%clk 0:00:04.3]} 48. Rxg6 {[%clk 0:00:26.7]}
48... fxg6 {[%clk 0:00:04.5]} 49. h8=Q {[%clk 0:00:26.9]} 49... Kc4 {[%clk
0:00:04.5]} 50. a5 {[%clk 0:00:25.2]} 50... Kd3 {[%clk 0:00:04.2]} 51. a6 {[%clk
0:00:25.1]} 51... e3 {[%clk 0:00:04.2]} 52. a7 {[%clk 0:00:22]} 52... e2 {[%clk
0:00:01.1]} 53. Qa1 {[%clk 0:00:22.9]} 1-0